bitfinex-derivatives/quotes_BNBF0:USTF0_20250330
["timestamp","ask_amount","ask_price","bid_price","bid_amount"]
[1743296065918,1.609,603.63,602.67,1.49262687]
[1743296067421,1.609,603.63,602.59,1.49262687]
[1743296069115,1.609,603.63,602.67,1.49262687]
[1743296070213,1.609,603.63,602.56,0.28847828]
[1743296071715,1.609,603.63,602.52,1.49262687]
[1743296071919,1.779,603.62,602.56,0.28850817]
[1743296074618,1.779,603.62,602.52,1.49262687]
[1743296074921,1.779,603.62,602.56,0.28850339]
[1743296079427,1.779,603.62,602.62,1.49262687]
[1743296080628,1.779,603.62,602.56,0.28850339]
[1743296080629,1.779,603.62,602.79,1.49262687]
[1743296082326,1.779,603.62,602.65,1.49262687]
[1743296084326,1.779,603.62,602.75,1.49262687]
[1743296085131,1.609,603.63,602.75,1.49262687]
[1743296086426,1.609,603.63,602.61,0.28846632]
[1743296087633,1.493,603.7,602.61,0.28846632]
[1743296088032,3.147,603.7,602.61,1.78109319]
[1743296089836,3.147,603.7,602.61,1.49262687]
[1743296090029,3.147,603.7,602.61,1.78105494]
[1743296090434,3.147,603.7,602.64,1.49262687]
[1743296091332,4.714,603.7,602.64,1.49262687]
[1743296093229,4.714,603.7,602.61,0.28842807]
[1743296095638,4.714,603.7,602.53,1.49262687]
[1743296095939,4.714,603.7,602.61,0.28847828]
[1743296096138,4.714,603.7,602.62,0.3318841]
[1743296103252,4.714,603.7,602.85,1.49262687]
[1743296105445,4.714,603.7,602.81,1.49262687]
[1743296107656,4.714,603.7,602.84,1.49262687]
[1743296108852,4.714,603.7,602.92,1.49262687]
[1743296110764,4.714,603.7,602.94,1.49262687]
[1743296112656,4.714,603.7,602.99,1.49262687]
[1743296114464,4.714,603.7,602.89,0.28838504]
[1743296115859,4.714,603.7,602.94,1.49262687]
[1743296117965,4.714,603.7,602.93,1.49262687]
[1743296120962,4.714,603.7,602.92,0.28841611]
[1743296120963,4.714,603.7,602.99,1.49262687]
[1743296123166,4.714,603.7,602.92,0.28841611]
[1743296125467,1.22151416,603.69,602.92,0.28841611]
[1743296126469,3.1755429,603.92,602.92,0.28841611]
[1743296126670,0.33117517,603.91,602.92,0.28841611]
[1743296126864,4.93738037,603.91,602.92,0.28841611]
[1743296127070,4.6062052,603.9,602.92,0.28841611]
[1743296127271,1.24832297,603.89,602.92,0.28841611]
[1743296127466,0.33119162,603.88,602.92,0.28841611]
[1743296127873,3.50673452,603.88,602.92,0.28841611]
[1743296128073,1.41887245,603.87,602.92,0.28841611]
[1743296128372,0.33120808,603.85,602.92,0.28841611]
[1743296128881,2.785,603.84,602.62,0.3318841]
[1743296129074,0.33122453,603.82,602.92,0.28850937]
[1743296129275,3.1755429,603.81,602.62,0.3318841]
[1743296129475,0.3312355,603.8,602.62,0.3318841]
[1743296129869,3.1755429,603.79,602.62,0.3318841]
[1743296130068,0.33124648,603.78,602.63,0.28854166]
[1743296130369,1.75011893,603.78,602.63,0.28854166]
[1743296130574,1.22151416,603.77,602.63,0.28854166]
[1743296130776,0.33125745,603.76,602.63,0.28854166]
[1743296131269,1.55277161,603.76,602.63,0.28854166]
[1743296131575,1.22151416,603.75,602.63,0.28854166]
[1743296131775,0.33126842,603.74,602.62,0.3318841]
[1743296131974,1.55278258,603.74,602.63,0.28852372]
[1743296132969,1.22151416,603.73,602.63,0.28852372]
[1743296133170,0.3312794,603.72,602.63,0.28852372]
[1743296133371,1.55279356,603.72,602.63,0.28852372]
[1743296133974,1.22151416,603.71,602.63,0.28852372]
[1743296134168,0.33129037,603.7,602.63,0.28852372]
[1743296134575,1.22151416,603.69,602.63,0.28852372]
[1743296134773,1.22151416,603.69,602.62,0.3318841]
[1743296134774,0.33130135,603.68,602.62,0.3318841]
[1743296134969,0.33130135,603.68,602.63,0.2885285]
[1743296141476,1.22151416,603.67,602.63,0.2885285]
[1743296141673,0.33131232,603.66,602.63,0.2885285]
[1743296142578,1.55282648,603.66,602.63,0.2885285]
[1743296143178,1.22151416,603.65,602.63,0.2885285]
[1743296143572,0.3313233,603.64,602.63,0.2885285]
[1743296143777,0.3313233,603.64,601.94,1.49262687]
[1743296143977,1.22151416,603.63,602.63,0.28863859]
[1743296144180,0.33133428,603.62,602.63,0.28863859]
[1743296144372,0.33133428,603.62,601.96,0.33224798]
[1743296144876,1.22151416,603.61,601.96,0.33224798]
[1743296145076,0.33134526,603.6,601.96,0.33224798]
[1743296145478,1.55285942,603.6,601.96,0.33224798]
[1743296145678,1.55285942,603.6,601.97,0.28865774]
[1743296145885,1.22151416,603.59,601.99,0.33223143]
[1743296146182,0.33135624,603.58,601.99,0.33223143]
[1743296146579,1.22151416,603.57,601.99,0.33223143]
[1743296146776,0.33136722,603.56,601.99,0.33223143]
[1743296147178,1.55288138,603.56,601.99,0.33223143]
[1743296147381,1.11,603.55,601.99,0.33223143]
[1743296147585,0.3313782,603.54,601.99,0.33223143]
[1743296148377,1.22151416,603.53,601.99,0.33223143]
[1743296148978,1.22151416,603.52,601.99,0.33223143]
[1743296149382,1.22151416,603.51,601.99,0.33223143]
[1743296150087,1.55291432,603.5,601.99,0.33223143]
[1743296150280,0.33140565,603.49,601.99,0.33223143]
[1743296150485,1.55291981,603.49,601.99,0.33223143]
[1743296151384,1.22151416,603.48,601.99,0.33223143]
[1743296152185,1.22151416,603.47,601.99,0.33223143]
[1743296152890,0.33140565,603.49,601.99,0.33223143]
[1743296154088,1.22151416,603.48,601.99,0.33223143]
[1743296154285,0.33141664,603.47,601.99,0.33223143]
[1743296154790,1.22151416,603.46,601.99,0.33223143]
[1743296155089,0.33142762,603.45,601.99,0.33223143]
[1743296155290,1.55294178,603.45,601.99,0.33223143]
[1743296155688,1.22151416,603.44,601.99,0.33223143]
[1743296156482,1.22151416,603.43,601.99,0.33223143]
[1743296156688,0.3314441,603.42,601.99,0.33223143]
[1743296157084,1.22151416,603.41,601.99,0.33223143]
[1743296157286,0.33145508,603.4,601.99,0.33223143]
[1743296157692,1.22151416,603.39,601.99,0.33223143]
[1743296158290,1.193,603.38,601.99,0.33223143]
[1743296158790,0.33147156,603.37,601.99,0.33223143]
[1743296159787,1.22151416,603.36,601.99,0.33223143]
[1743296160091,0.33148255,603.35,601.99,0.33223143]
[1743296163688,1.21260916,603.34,601.99,0.33223143]
[1743296163989,0.33149903,603.32,601.99,0.33223143]
[1743296165393,1.21260916,603.31,601.99,0.33223143]
[1743296165894,0.33149903,603.32,601.99,0.33223143]
[1743296166389,0.30488319,603.31,601.99,0.33223143]
[1743296166793,0.33151552,603.29,601.99,0.33223143]
[1743296166993,1.63889016,603.27,601.99,0.33223143]
[1743296167192,0.3315375,603.25,601.99,0.33223143]
[1743296167794,3.15278383,603.24,601.99,0.33223143]
[1743296167994,0.33154849,603.23,601.99,0.33223143]
[1743296168591,3.15278383,603.22,601.99,0.33223143]
[1743296168896,0.33155949,603.21,601.99,0.33223143]
[1743296169499,3.15278383,603.2,601.99,0.33223143]
[1743296169695,0.33157048,603.19,601.99,0.33223143]
[1743296169897,1.74004013,603.19,601.99,0.33223143]
[1743296170097,3.15278383,603.18,601.99,0.33223143]
[1743296170295,0.33158147,603.17,601.99,0.33223143]
[1743296170495,1.74005112,603.17,601.99,0.33223143]
[1743296170800,3.15278383,603.16,601.99,0.33223143]
[1743296171001,0.33159247,603.15,601.99,0.33223143]
[1743296171198,1.74006212,603.15,601.99,0.33223143]
[1743296171396,3.15278383,603.14,601.99,0.33223143]
[1743296171600,0.33160346,603.13,601.99,0.33223143]
[1743296172199,1.21260916,603.12,601.99,0.33223143]
[1743296172399,0.33161446,603.11,601.99,0.33223143]
[1743296172899,1.21260916,603.1,601.99,0.33223143]
[1743296173098,1.54423462,603.09,601.99,0.33223143]
[1743296173297,0.33163096,603.08,601.99,0.33223143]
[1743296173501,1.21260916,603.07,601.99,0.33223143]
[1743296173701,1.54424562,603.07,601.99,0.33223143]
[1743296173897,3.16024562,603.07,601.99,0.33223143]
[1743296174099,1.94763646,603.07,601.99,0.33223143]
[1743296187620,3.13363646,603.07,601.99,0.33223143]
[1743296190423,0.33164195,603.06,601.99,0.33223143]
[1743296193024,1.089,603.05,601.99,0.33223143]
[1743296193226,0.33165295,603.04,601.99,0.33223143]
[1743296196228,1.19841138,603.03,601.99,0.33223143]
[1743296196831,1.53006433,603.04,601.99,0.33223143]
[1743296197424,1.19841138,603.03,601.99,0.33223143]
[1743296199026,1.53006433,603.04,601.99,0.33223143]
[1743296200132,0.33165295,603.04,601.99,0.33223143]
[1743296200738,1.19841138,603.03,601.99,0.33223143]
[1743296200935,0.33166395,603.02,601.99,0.33223143]
[1743296203733,1.667,603.01,601.99,0.33223143]
[1743296204035,0.33167495,603.0,601.99,0.33223143]
[1743296206029,1.754,602.99,601.99,0.33223143]
[1743296218144,1.53403593,603.0,601.99,0.33223143]
[1743296218847,1.20236098,602.99,601.99,0.33223143]
[1743296219748,1.20236098,602.98,601.99,0.33223143]
[1743296220651,1.20236098,602.97,601.99,0.33223143]
[1743296221051,1.20236098,602.99,601.99,0.33223143]
[1743296221553,1.20236098,602.98,601.99,0.33223143]
[1743296221746,2.61636098,602.98,601.99,0.33223143]
[1743296221949,1.20236098,602.97,601.99,0.33223143]
[1743296222345,1.20236098,602.96,601.99,0.33223143]
[1743296224146,1.20236098,602.96,602.05,1.49262687]
[1743296226453,1.20236098,602.97,602.05,1.49262687]
[1743296227452,1.20236098,602.96,602.05,1.49262687]
[1743296227653,1.20236098,602.96,601.99,0.33223143]
[1743296227952,1.20236098,602.95,602.03,0.28883503]
[1743296228448,1.20236098,602.94,602.03,0.28883503]
[1743296229251,1.20236098,602.93,602.03,0.28883503]
[1743296230048,1.20236098,602.92,602.03,0.28883503]
[1743296230758,1.20236098,602.91,601.99,0.33223143]
[1743296231159,1.20236098,602.91,602.03,0.2888638]
[1743296231556,1.20236098,602.97,602.03,0.2888638]
[1743296231760,0.33169696,602.96,602.03,0.2888638]
[1743296232259,1.20236098,602.95,602.03,0.2888638]
[1743296232559,2.66906344,602.95,602.03,0.2888638]
[1743296232756,1.20236098,602.94,602.03,0.2888638]
[1743296233362,1.20236098,602.93,602.03,0.2888638]
[1743296233754,1.20236098,602.93,601.99,0.33223143]
[1743296233953,1.20236098,602.92,601.99,0.33223143]
[1743296234655,1.20236098,602.91,601.99,0.33223143]
[1743296235257,1.20236098,602.91,602.0,0.28889018]
[1743296235568,1.20236098,602.9,602.0,0.28889018]
[1743296236460,1.20236098,602.89,602.0,0.28889018]
[1743296237462,1.20236098,602.88,602.0,0.28889018]
[1743296237968,1.20236098,602.87,602.0,0.28889018]
[1743296238571,1.20236098,602.94,602.0,0.28889018]
[1743296239368,1.20236098,602.93,602.0,0.28889018]
[1743296239870,1.20236098,602.92,601.99,0.33223143]
[1743296240067,1.20236098,602.92,602.0,0.2888626]
[1743296240574,1.20236098,602.91,602.0,0.2888626]
[1743296241372,1.20236098,602.9,602.0,0.2888626]
[1743296241873,1.20236098,602.94,602.0,0.2888626]
[1743296242467,1.20236098,602.93,602.0,0.2888626]
[1743296242876,1.20236098,602.93,601.99,0.33223143]
[1743296243070,1.20236098,602.94,602.0,0.28884582]
[1743296243972,1.20236098,602.93,602.0,0.28884582]
[1743296244473,1.20236098,602.94,602.0,0.28884582]
[1743296245068,1.20236098,602.93,602.0,0.28884582]
[1743296245775,1.20236098,602.92,601.99,0.33223143]
[1743296246174,1.20236098,602.92,602.0,0.28883863]
[1743296246570,1.20236098,602.94,602.0,0.28883863]
[1743296246775,1.853,602.91,602.0,0.28883863]
[1743296247174,1.087,602.9,602.0,0.28883863]
[1743296248771,1.087,602.9,602.12,1.49262687]
[1743296249278,1.088,602.89,602.12,1.49262687]
[1743296251179,1.088,602.89,602.04,2.50797734]
[1743296251180,1.088,602.89,602.13,1.49262687]
[1743296252581,1.088,602.89,602.08,1.49262687]
[1743296254984,1.088,602.89,601.99,0.33223143]
[1743296255184,1.088,602.89,602.06,0.28882065]
[1743296257877,1.088,602.89,601.99,0.33223143]
[1743296258082,1.088,602.89,602.06,0.28881705]
[1743296260887,1.088,602.89,601.99,0.33223143]
[1743296261086,1.088,602.89,602.06,0.28880028]
[1743296264592,1.848,602.88,602.06,0.28880028]
[1743296266790,1.848,602.88,601.99,0.33223143]
[1743296267191,1.848,602.88,602.06,0.28879428]
[1743296269895,1.848,602.88,602.03,1.49262687]
[1743296270103,1.848,602.88,602.06,0.28878949]
[1743296272804,1.848,602.88,602.17,1.49262687]
[1743296273902,1.848,602.88,602.16,1.49262687]
[1743296275400,1.848,602.88,602.1,0.28877272]
[1743296275799,1.848,602.88,602.08,1.49262687]
[1743296276502,1.848,602.88,602.09,0.2887835]
[1743296277003,1.848,602.88,602.09,1.78141037]
[1743296278606,1.56,602.87,602.09,1.78141037]
[1743296278800,1.56,602.87,602.09,1.49262687]
[1743296279003,1.56,602.87,602.14,1.49262687]
[1743296280509,1.56,602.87,602.17,1.49262687]
[1743296282505,1.56,602.87,602.18,0.3321266]
[1743296282709,1.56,602.87,602.3,1.49262687]
[1743296284819,1.56,602.87,602.32,1.49262687]
[1743296286517,1.218,602.86,602.32,1.49262687]
[1743296286816,1.218,602.86,602.19,0.28870803]
[1743296286817,1.218,602.86,602.39,1.49262687]
[1743296288611,1.218,602.86,602.37,1.49262687]
[1743296289810,1.218,602.86,602.22,1.49262687]
[1743296290617,1.218,602.86,602.23,0.33209903]
[1743296291016,1.218,602.86,602.26,1.49262687]
[1743296291216,1.218,602.86,602.27,0.33207697]
[1743296296921,1.436,602.85,602.27,0.33207697]
[1743296301424,1.436,602.85,602.44,1.49262687]
[1743296303626,1.436,602.85,602.41,1.49262687]
[1743296304326,2.816,602.84,602.41,1.49262687]
[1743296304526,2.816,602.84,602.44,1.49262687]
[1743296306325,2.816,602.84,602.37,0.28865415]
[1743296306326,2.816,602.84,602.52,1.49262687]
[1743296308429,2.816,602.84,602.58,1.49262687]
[1743296310028,2.816,602.84,602.45,0.28862782]
[1743296310029,2.816,602.84,602.49,1.49262687]
[1743296311628,1.184,602.83,602.46,1.49262687]
[1743296311925,1.184,602.83,602.47,0.33196673]
[1743296312923,1.184,602.83,602.48,1.49262687]
[1743296313124,1.184,602.83,602.49,0.33195571]
[1743296314332,1.184,602.83,602.5,1.49262687]
[1743296314532,1.184,602.83,602.51,0.33194469]
[1743296316538,1.184,602.83,602.59,1.49262687]
[1743296318138,1.184,602.83,602.52,0.28863021]
[1743296320844,1.184,602.83,602.51,0.33194469]
[1743296321034,1.184,602.83,602.52,0.28864218]
[1743296321836,2.928,602.83,602.52,0.28864218]
[1743296322734,4.488,602.83,602.52,0.28864218]
[1743296323841,4.488,602.83,602.51,0.33194469]
[1743296324042,4.488,602.83,602.52,0.28864218]
[1743296326839,4.488,602.83,602.51,0.33194469]
[1743296327043,4.488,602.83,602.52,0.28864218]
[1743296329749,4.488,602.83,602.51,0.33194469]
[1743296330249,4.488,602.83,602.52,0.28864218]
[1743296332354,1.94178532,602.83,602.52,0.28864218]
[1743296332653,1.56,602.83,602.52,0.28864218]
[1743296332852,1.56,602.83,602.51,0.33194469]
[1743296333056,1.56,602.83,602.54,1.49262687]
[1743296334751,1.56,602.83,602.59,1.49262687]
[1743296336856,1.56,602.83,602.63,1.49262687]
[1743296337256,0.52,603.3,602.63,1.49262687]
[1743296338164,0.52,603.3,602.86,1.49262687]
[1743296339254,1.7,603.57,602.86,1.49262687]
[1743296339464,1.7,603.57,602.91,1.49262687]
[1743296339660,0.33136722,603.56,602.91,1.07862687]
[1743296340660,1.162,603.55,602.66,0.28852611]
[1743296340861,1.49337271,603.55,602.66,0.28852611]
[1743296341757,1.49337271,603.55,602.51,0.33194469]
[1743296342158,1.49337271,603.55,602.66,0.28858234]
[1743296342455,1.49337271,603.55,602.51,0.33194469]
[1743296342655,0.521,603.54,602.51,0.33194469]
[1743296343256,0.521,603.54,602.52,0.2885979]
[1743296347773,0.521,603.54,602.51,0.33194469]
[1743296348068,0.521,603.54,602.52,0.28858234]
[1743296353872,0.521,603.54,602.51,0.33194469]
[1743296354072,0.521,603.54,602.52,0.28858234]
[1743296356873,0.521,603.54,602.51,0.33194469]
[1743296357068,0.521,603.54,602.52,0.28858234]
[1743296359878,1.7240318,603.54,602.51,0.33194469]
[1743296360274,1.7240318,603.54,602.52,0.28858234]
[1743296361180,1.2030318,603.53,602.52,0.28858234]
[1743296362178,1.2030318,603.52,602.52,0.28858234]
[1743296362777,1.2030318,603.52,602.51,0.33194469]
[1743296362979,1.2030318,603.51,602.51,0.33194469]
[1743296363178,2.9800318,603.51,602.52,0.28858593]
[1743296363780,1.2030318,603.5,602.52,0.28858593]
[1743296364284,1.2030318,603.49,602.52,0.28858593]
[1743296365182,1.2030318,603.5,602.52,0.28858593]
[1743296365777,1.2030318,603.5,602.51,0.33194469]
[1743296365974,1.777,603.51,602.51,0.33194469]
[1743296366177,1.777,603.51,602.52,0.28858114]
[1743296368790,1.777,603.51,602.51,0.33194469]
[1743296369079,1.777,603.51,602.52,0.28854884]
[1743296371887,1.777,603.51,602.51,0.33194469]
[1743296372086,1.777,603.51,602.52,0.28854884]
[1743296373382,1.587,603.5,602.52,0.28854884]
[1743296374585,1.587,603.5,602.55,1.48780737]
[1743296376186,1.587,603.5,602.63,1.48780737]
[1743296377989,1.587,603.5,602.62,1.48780737]
[1743296380291,1.587,603.5,602.56,0.28851654]
[1743296380292,1.737,603.49,602.56,0.28851654]
[1743296383796,1.737,603.49,602.56,1.48780737]
[1743296384295,1.737,603.49,602.56,1.77633468]
[1743296384788,1.737,603.49,602.56,0.28852731]
[1743296386802,1.737,603.49,602.51,0.33194469]
[1743296387194,1.737,603.49,602.56,0.28853209]
[1743296387395,1.737,603.49,602.56,0.62044924]
[1743296387695,1.737,603.49,602.57,0.33191164]
[1743296389698,1.737,603.49,602.73,1.48331996]
[1743296390497,1.737,603.49,602.63,0.28848186]
[1743296390697,1.737,603.49,602.64,0.33187309]
[1743296391901,1.737,603.49,602.82,1.4827862]
[1743296392507,1.737,603.49,602.64,0.33187309]
[1743296393920,1.737,603.49,602.76,1.48279198]
[1743296394210,1.145,603.48,602.76,1.48279198]
[1743296394908,1.145,603.48,602.66,2.5228058]
[1743296394909,1.145,603.48,602.64,0.33187309]
[1743296402526,0.525,603.47,602.64,0.33187309]
[1743296403023,1.887,603.46,602.64,0.33187309]
[1743296407624,1.887,603.46,602.73,1.48652952]
[1743296408427,1.887,603.46,602.74,1.48652952]
[1743296410125,1.887,603.46,602.7,1.48652952]
[1743296412835,1.887,603.46,602.72,1.48652952]
[1743296414433,1.887,603.46,602.7,0.28852013]
[1743296416928,1.887,603.46,602.64,0.33187309]
[1743296417333,1.887,603.46,602.7,0.2885297]
[1743296418730,1.526,603.45,602.7,0.2885297]
[1743296419830,1.526,603.45,602.64,0.33187309]
[1743296420129,1.526,603.45,602.7,0.2885285]
[1743296422842,1.526,603.45,602.64,0.33187309]
[1743296423229,1.526,603.45,602.7,0.2885285]
[1743296426036,1.526,603.45,602.65,1.48827548]
[1743296426332,1.526,603.45,602.7,0.28852731]
[1743296426536,1.526,603.45,602.8,1.48827548]
[1743296428334,1.526,603.45,602.72,1.48827548]
[1743296429638,1.526,603.45,602.91,1.48827548]
[1743296431236,1.526,603.45,602.99,1.48827548]
[1743296431632,2.718,603.45,602.99,1.48827548]
[1743296435240,2.718,603.45,602.82,0.28848426]
[1743296437837,2.718,603.45,602.64,0.33187309]
[1743296438236,2.718,603.45,602.82,0.2885309]
[1743296438437,2.718,603.45,602.64,0.33187309]
[1743296439236,2.718,603.45,602.65,1.77680757]
[1743296442445,2.718,603.45,602.78,1.48827548]
[1743296444248,2.718,603.45,603.02,1.48827548]
[1743296445850,2.718,603.45,602.7,0.28849741]
[1743296445851,2.718,603.45,602.77,1.48827548]
[1743296448158,2.718,603.45,602.8,1.48827548]
[1743296449454,2.718,603.45,602.73,0.28846752]
[1743296450153,2.718,603.45,602.74,0.33181803]
[1743296458954,3.246,603.45,602.74,0.33181803]
[1743296459357,3.246,603.45,602.75,1.48401714]
[1743296459552,3.246,603.45,602.76,0.33180702]
[1743296461753,3.246,603.45,602.78,1.48401714]
[1743296461957,3.246,603.45,602.79,0.3317905]
[1743296462755,3.246,603.45,602.83,1.48401714]
[1743296462958,3.246,603.45,602.84,0.33176298]
[1743296464763,3.246,603.45,602.85,1.48401714]
[1743296464960,3.246,603.45,602.85,1.81577462]
[1743296466565,3.246,603.45,603.02,1.48401714]
[1743296468662,3.246,603.45,602.89,1.48401714]
[1743296471462,3.246,603.45,602.87,0.28846513]
[1743296473869,3.246,603.45,602.85,0.33175748]
[1743296474169,3.246,603.45,602.87,0.288446]
[1743296476774,3.246,603.45,602.85,0.33175748]
[1743296477172,3.246,603.45,602.87,0.28842209]
[1743296478980,3.246,603.45,602.98,1.48401714]
[1743296480479,3.246,603.45,603.04,1.48401714]
[1743296481985,3.246,603.45,603.19,1.48401714]
[1743296483982,3.246,603.45,603.18,1.48401714]
[1743296485988,3.246,603.45,603.22,1.48401714]
[1743296486190,2.718,603.45,603.22,1.48401714]
[1743296486483,1.45177902,604.3,603.22,1.48401714]
[1743296486690,0.33097239,604.28,603.22,1.48401714]
[1743296486882,0.30435244,604.27,603.22,1.48401714]
[1743296487084,0.33098335,604.26,603.22,1.48401714]
[1743296487688,0.30435368,604.25,603.22,1.48401714]
[1743296487888,0.3309943,604.24,603.22,1.48401714]
[1743296488086,0.3309943,604.24,603.35,1.48401714]
[1743296488688,0.529,604.23,603.35,1.48401714]
[1743296488888,0.33100526,604.22,603.35,1.48401714]
[1743296489089,1.78278428,604.22,603.35,1.48401714]
[1743296489384,0.33100526,604.22,603.35,1.48401714]
[1743296489788,1.53261414,604.22,603.19,1.77228513]
[1743296489988,2.98443895,604.22,603.19,1.77228513]
[1743296490189,1.53261414,604.22,603.19,1.77228513]
[1743296490990,1.53261414,604.22,603.19,0.28826799]
[1743296491888,0.33100526,604.22,602.95,1.48401714]
[1743296492088,0.33100526,604.22,602.96,0.33169696]
[1743296492389,0.33100526,604.22,603.19,0.28828709]
[1743296492580,0.33100526,604.22,602.96,0.33169696]
[1743296493185,0.33100526,604.22,602.97,0.28827396]
[1743296493487,0.33100526,604.22,602.98,0.33168595]
[1743296493688,0.33100526,604.22,602.99,1.48401714]
[1743296493888,0.33100526,604.22,603.0,0.33167495]
[1743296495186,0.33100526,604.22,603.07,1.48401714]
[1743296495382,0.33100526,604.22,603.08,0.33163096]
[1743296497485,0.33100526,604.22,603.15,1.48401714]
[1743296498891,0.33100526,604.22,603.08,0.33163096]
[1743296513694,1.465,604.21,603.08,0.33163096]
[1743296514696,1.101,604.2,603.08,0.33163096]
[1743296518800,0.33102169,604.19,603.08,0.33163096]
[1743296528607,1.38002169,604.19,603.11,1.48401714]
[1743296529816,1.38002169,604.19,603.08,0.33163096]
[1743296531319,1.91402169,604.19,603.08,0.33163096]
[1743296535517,1.20263045,604.18,603.08,0.33163096]
[1743296535711,0.33103265,604.17,603.08,0.33163096]
[1743296536115,1.5336631,604.17,603.08,0.33163096]
[1743296536720,0.33103265,604.17,603.08,0.33163096]
[1743296540821,1.583,604.16,603.08,0.33163096]
[1743296541023,1.583,604.16,603.11,1.48401714]
[1743296542422,1.583,604.16,603.12,1.48401714]
[1743296542815,1.91403813,604.16,603.12,1.48401714]
[1743296543419,1.91403813,604.16,603.11,1.48401714]
[1743296544125,3.11745212,604.16,603.11,1.48401714]
[1743296544727,1.91403813,604.16,603.11,1.48401714]
[1743296545227,1.20341399,604.15,603.11,1.48401714]
[1743296545427,1.20341399,604.15,603.12,1.48401714]
[1743296545928,2.16741399,604.14,603.12,1.48401714]
[1743296546422,0.964,604.14,603.12,1.48401714]
[1743296546626,0.964,604.14,603.11,1.48401714]
[1743296548019,2.41856922,604.14,603.11,1.48401714]
[1743296548219,1.53446856,604.13,603.11,1.48401714]
[1743296548424,0.33106005,604.12,603.11,1.48401714]
[1743296548622,1.53447404,604.12,603.28,1.48401714]
[1743296549224,0.33106005,604.12,603.28,1.48401714]
[1743296549933,0.33106005,604.12,603.17,0.2882859]
[1743296552039,0.33106005,604.12,603.08,0.33163096]
[1743296552231,0.33106005,604.12,603.17,0.2883074]
[1743296552637,0.33106005,604.12,603.08,0.33163096]
[1743296553540,0.33106005,604.12,603.09,0.28830978]
[1743296554939,0.33106005,604.12,603.08,0.33163096]
[1743296555339,0.33106005,604.12,603.09,0.2883074]
[1743296557939,0.33106005,604.12,603.08,0.33163096]
[1743296558340,0.33106005,604.12,603.09,0.28830501]
[1743296560948,0.33106005,604.12,603.08,0.33163096]
[1743296561247,0.33106005,604.12,603.4,1.48401714]
[1743296562239,1.451,604.11,603.4,1.48401714]
[1743296562648,1.451,604.11,603.44,1.48401714]
[1743296564347,1.451,604.11,603.33,1.48401714]
[1743296565747,1.451,604.11,603.18,1.48401714]
[1743296566745,1.451,604.11,603.09,0.28824531]
[1743296566943,1.451,604.11,603.08,0.33163096]
[1743296567243,1.451,604.11,603.09,0.28826083]
[1743296569548,1.889,604.1,603.09,0.28826083]
[1743296569951,1.889,604.1,603.08,0.33163096]
[1743296570451,1.889,604.1,603.09,0.28825247]
[1743296571546,1.889,604.1,603.14,1.48401714]
[1743296572852,0.536,604.09,603.14,1.48401714]
[1743296574252,0.536,604.09,603.11,0.2882668]
[1743296575950,0.536,604.09,603.08,0.33163096]
[1743296576346,0.536,604.09,603.11,0.28826202]
[1743296578255,1.363,604.08,603.11,0.28826202]
[1743296578950,1.363,604.08,603.08,0.33163096]
[1743296579450,1.363,604.08,603.11,0.28824531]
[1743296580056,1.363,604.08,603.17,1.48401714]
[1743296582157,1.363,604.08,603.28,1.48401714]
[1743296583259,1.363,604.08,603.33,1.48401714]
[1743296584859,1.363,604.08,603.34,1.48401714]
[1743296586358,1.363,604.08,603.39,1.48401714]
[1743296587659,1.363,604.08,603.37,1.48401714]
[1743296589164,2.613,604.08,603.37,1.48401714]
[1743296590066,2.613,604.08,603.38,1.48401714]
[1743296592673,2.613,604.08,603.31,0.28815461]
[1743296594068,2.613,604.08,603.29,1.48401714]
[1743296594473,2.613,604.08,603.16,2.52489028]
[1743296594474,2.613,604.08,603.31,0.28816773]
[1743296596966,2.613,604.08,602.97,1.48401714]
[1743296597166,2.613,604.08,602.99,0.33168045]
[1743296597471,2.613,604.08,603.31,0.28820592]
[1743296597673,2.613,604.08,603.32,0.33149903]
[1743296608182,3.152,604.08,603.32,0.33149903]
[1743296611774,3.152,604.08,603.47,1.48401714]
[1743296611979,3.152,604.08,603.48,0.33141114]
[1743296613382,3.152,604.08,603.51,1.48401714]
[1743296613681,3.152,604.08,603.52,0.33138918]
[1743296618786,3.152,604.08,603.74,1.48401714]
[1743296619179,0.539,604.08,603.74,1.48401714]
[1743296619486,0.539,604.08,603.75,0.33126293]